bitfinex/quotes_ETHUSD_20241030
["timestamp","ask_amount","ask_price","bid_price","bid_amount"]
[1730299558787,3.68756,2711.9,2711.4,1.79702055]
[1730299559078,3.68756,2711.9,2711.4,0.9137]
[1730299559283,3.68762,2711.8,2711.4,0.9137]
[1730299559965,3.68779,2711.7,2711.0,0.9369]
[1730299560176,3.68799,2711.5,2711.0,0.9369]
[1730299560562,3.68781,2711.7,2711.0,0.9369]
[1730299560774,3.68801,2711.5,2711.0,0.9369]
[1730299561057,3.6882,2711.4,2711.0,0.9369]
[1730299561297,3.68833,2711.3,2711.0,0.9369]
[1730299561460,4.61679,2711.4,2710.7,4.70514373]
[1730299561660,4.61679,2711.4,2710.7,2.20487699]
[1730299561661,3.68834,2711.3,2710.7,2.20487699]
[1730299561896,4.61674,2711.4,2710.7,5.89392699]
[1730299562203,3.68826,2711.3,2710.7,2.13110326]
[1730299562505,3.68826,2711.3,2710.7,0.9423]
[1730299562800,3.68854,2711.1,2710.7,0.9423]
[1730299563403,3.68836,2711.3,2710.7,0.9423]
[1730299563769,3.68848,2711.2,2710.7,0.9423]
[1730299564248,3.68854,2711.1,2710.7,0.9423]
[1730299564402,7.37698,2711.2,2710.7,0.9423]
[1730299564588,3.68881,2711.0,2710.5,1.3e-06]
[1730299564907,6.68815,2711.4,2710.7,0.9023]
[1730299565197,3.68855,2711.1,2710.7,0.9023]
[1730299565500,3.0,2711.3,2710.7,0.9023]
[1730299565807,6.68834,2711.3,2710.8,0.43959275]
[1730299566104,6.68834,2711.3,2710.5,0.9291013]
[1730299566105,4.6009,2711.2,2710.5,0.9291013]
[1730299566270,0.9125,2711.2,2710.5,5.42967518]
[1730299566478,6.68827,2711.3,2710.6,3.6892]
[1730299566676,3.6884,2711.2,2710.5,5.42967518]
[1730299566886,3.6884,2711.2,2710.6,0.54296752]
[1730299567503,3.6884,2711.2,2710.5,5.42967518]
[1730299567780,3.68822,2711.4,2710.9,0.9457]
[1730299567781,3.0,2711.4,2710.9,0.9457]
[1730299568022,0.8589,2711.5,2711.0,0.07377061]
[1730299568319,3.68799,2711.5,2711.0,0.47082906]
[1730299568483,3.68828,2711.3,2710.9,0.9457]
[1730299568875,3.68832,2711.3,2710.9,0.9457]
[1730299569109,3.6886,2711.1,2710.6,0.916]
[1730299569523,7.37721,2711.1,2710.6,0.916]
[1730299569719,3.6889,2710.9,2710.6,0.916]
[1730299569879,3.6889,2710.9,2710.5,1.3e-06]
[1730299570304,3.0,2710.9,2710.5,1.3e-06]
[1730299570893,6.68887,2710.9,2710.5,1.3e-06]
[1730299571090,3.9002,2711.0,2710.5,1.3e-06]
[1730299571418,7.58896,2711.0,2710.5,1.3e-06]
[1730299572213,6.68855,2711.1,2710.5,1.3e-06]
[1730299572727,3.8826,2711.2,2710.5,4.14698543]
[1730299573090,7.5711,2711.2,2710.5,0.45766543]
[1730299573424,3.0,2711.0,2710.5,0.45766543]
[1730299573590,6.68867,2711.0,2710.5,0.45766543]
[1730299573927,3.68894,2710.8,2710.5,1.3e-06]
[1730299574293,3.68922,2710.6,2710.5,1.3e-06]
[1730299574496,4.551,2710.7,2710.5,1.3e-06]
[1730299574693,0.8619,2710.7,2710.5,1.3e-06]
[1730299575223,4.55102,2710.7,2710.5,1.3e-06]
[1730299575378,0.8619,2710.7,2710.5,1.3e-06]
[1730299576226,4.551,2710.7,2710.5,1.3e-06]
[1730299576597,6.68922,2710.6,2710.5,1.3e-06]
[1730299577187,3.0,2710.6,2710.5,1.3e-06]
[1730299577628,7.63009057,2711.3,2710.5,1.3e-06]
[1730299577629,3.922,2711.0,2710.5,1.3e-06]
[1730299577832,3.0,2711.0,2710.5,1.3e-06]
[1730299578035,3.922,2711.2,2710.5,1.3e-06]
[1730299578328,7.61049,2711.2,2710.5,1.3e-06]
[1730299578505,3.0,2711.0,2710.5,1.3e-06]
[1730299578899,6.68874,2711.0,2710.5,1.3e-06]
[1730299579241,0.8784,2710.9,2710.5,1.3e-06]
[1730299579727,3.0,2710.8,2710.5,1.3e-06]
[1730299580242,3.0,2711.0,2710.5,1.3e-06]
[1730299580530,3.68855,2711.1,2710.5,1.3e-06]
[1730299580704,3.0,2711.0,2710.6,0.8729]
[1730299581943,3.8784,2711.2,2710.6,0.8729]
[1730299582224,3.0,2711.0,2710.6,0.8729]
[1730299582828,3.0,2711.1,2710.6,0.8729]
[1730299583048,3.0,2711.1,2710.6,1.32913013]
[1730299583228,3.0,2710.9,2710.6,0.8729]
[1730299584134,3.0,2711.1,2710.6,0.8729]
[1730299584901,3.0,2711.1,2710.6,1.32912313]
[1730299585101,7.56688,2711.2,2710.6,1.32912313]
[1730299585721,3.8784,2711.2,2710.6,1.32912313]
[1730299586026,7.56681,2711.2,2710.6,1.32912313]
[1730299586235,3.68858,2711.1,2710.6,1.32912313]
[1730299586397,3.8784,2711.2,2710.7,0.4822752]
[1730299586602,3.0,2711.4,2710.9,0.9165]
[1730299586855,6.68815,2711.4,2710.9,0.9165]
[1730299587049,3.68826,2711.3,2710.9,0.9165]
[1730299587251,6.68815,2711.4,2710.9,0.9165]
[1730299587567,3.0,2711.4,2710.9,1.77464427]
[1730299588271,3.68841,2711.2,2710.9,0.9165]
[1730299588475,3.0,2711.4,2710.9,0.9165]
[1730299589141,3.0,2711.4,2711.0,0.8676]
[1730299589970,3.0,2711.4,2711.0,4.55617]
[1730299590274,3.0,2711.4,2711.1,0.455617]
[1730299590586,3.0,2711.6,2711.1,0.9474]
[1730299591175,2.9,2711.6,2711.1,0.9474]
[1730299591331,3.68807,2711.5,2711.1,0.9474]
[1730299591535,3.68842,2711.2,2710.8,0.8382]
[1730299591936,3.68855,2711.1,2710.8,0.8382]
[1730299592174,3.68842,2711.2,2710.8,0.8382]
[1730299592337,3.68813,2711.4,2710.8,0.8382]
[1730299592673,0.9136,2711.5,2710.8,0.8382]
[1730299592674,3.68853,2711.2,2710.8,0.8382]
[1730299592872,3.68862,2711.1,2710.8,0.8382]
[1730299593279,3.68868,2711.0,2710.8,0.8382]
[1730299593479,3.68829,2711.3,2710.8,0.8382]
[1730299593650,3.68853,2711.2,2710.8,0.8382]
[1730299593854,3.68829,2711.3,2710.8,0.8382]
[1730299594429,6.68813,2711.4,2710.8,0.8382]
[1730299594573,3.0,2711.6,2710.8,1.29094]
[1730299594773,3.0,2711.6,2710.9,3.68874]
[1730299595584,3.68,2711.7,2711.0,4.63842764]
[1730299595778,4.5438,2712.0,2711.2,0.876]
[1730299595973,8.23113,2712.0,2711.2,4.56429]
[1730299596499,4.5438,2712.0,2711.2,0.876]
[1730299596673,3.68759,2711.8,2711.2,0.876]
[1730299597078,3.68746,2711.9,2711.2,5.10947877]
[1730299597384,3.68746,2711.9,2711.2,5.18323952]
[1730299597691,3.68746,2711.9,2711.2,5.1832387]
[1730299597877,3.0,2711.9,2711.4,0.55]
[1730299598077,3.0,2711.9,2711.5,1.348118]
[1730299600111,3.68,2712.0,2711.5,5.036048]
[1730299600282,3.0,2712.2,2711.6,3.68778]
[1730299600485,3.68658,2712.6,2711.7,0.8807]
[1730299600712,3.68689,2712.4,2711.7,4.56842]
[1730299601004,3.68692,2712.3,2711.7,1.71369478]
[1730299601679,3.0,2712.4,2711.7,1.71369478]
[1730299601918,3.0,2712.2,2711.7,1.71369478]
[1730299602122,3.68726,2712.1,2711.7,0.8807]
[1730299602416,3.0,2712.2,2711.2,0.8761]
[1730299602417,3.0,2711.9,2711.2,0.8761]
[1730299602780,3.0,2711.9,2711.2,4.83837424]
[1730299602979,6.68746,2711.9,2711.2,0.8761]
[1730299603204,6.68746,2711.9,2711.3,0.80582575]
[1730299603492,3.0,2711.9,2711.3,0.8795828]
[1730299603827,3.0,2712.0,2711.4,4.37482752]
[1730299603981,3.0,2712.2,2711.4,9.0309618]
[1730299604182,3.68691,2712.3,2711.6,0.8812]
[1730299604388,6.68711,2712.2,2711.6,0.8812]
[1730299605321,3.0,2712.2,2711.6,0.8812]
[1730299605519,6.68691,2712.3,2711.6,0.8812]
[1730299605832,6.68691,2712.3,2711.6,1.69486194]
[1730299606483,3.0,2712.3,2711.8,0.9215]
[1730299607325,6.68671,2712.5,2711.8,0.9215]
[1730299607524,6.68671,2712.5,2711.9,0.81765131]
[1730299608025,3.0,2712.3,2711.9,0.81765131]
[1730299608185,3.0,2712.3,2711.8,0.9215]
[1730299608606,6.68671,2712.5,2711.8,0.9215]
[1730299609028,3.0,2712.5,2711.8,0.9215]
[1730299609198,3.68665,2712.5,2711.8,0.9215]
[1730299609402,6.68677,2712.4,2711.8,1.47116167]
[1730299609611,3.0,2712.4,2711.8,0.9215]
[1730299610143,3.0,2712.5,2711.8,4.60908]
[1730299610440,3.0,2712.7,2711.9,9.19709821]
[1730299610597,3.0,2712.7,2712.1,0.884]
[1730299610790,4.539,2712.9,2712.1,4.57116]
[1730299610991,3.6861,2712.9,2712.3,0.884]
[1730299611228,3.68633,2712.8,2712.3,0.884]
[1730299611724,3.68646,2712.7,2712.3,0.884]
[1730299611929,3.68657,2712.6,2712.3,0.884]
[1730299612102,3.68638,2712.7,2712.3,0.884]
[1730299612406,6.68622,2712.9,2712.3,0.884]
[1730299612832,3.68624,2712.8,2712.3,0.884]
[1730299613003,3.0,2712.7,2712.3,1.341112]
[1730299613404,3.0,2712.9,2712.3,1.341112]
[1730299613616,6.68611,2712.9,2712.3,1.341112]
[1730299614208,3.0,2712.9,2712.3,1.341112]
[1730299614409,3.0,2712.8,2712.3,1.341112]
[1730299615996,6.68615,2712.9,2712.3,1.341112]
[1730299616410,3.68622,2712.8,2712.3,1.341112]
[1730299616967,3.68638,2712.7,2712.3,1.341112]
[1730299617578,3.6863,2712.8,2712.3,1.341112]
[1730299617886,6.68611,2712.9,2712.3,1.341112]
[1730299618032,6.6862,2712.9,2712.4,0.8615]
[1730299618238,3.6863,2712.8,2712.4,0.8615]
[1730299618936,3.68632,2712.8,2712.0,0.9095]
[1730299619141,3.68632,2712.8,2712.1,0.9095]
[1730299619336,3.68632,2712.8,2712.1,1.82161135]
[1730299619883,3.0,2712.9,2712.2,4.54196]
[1730299620463,3.0,2712.9,2712.3,4.56886]
[1730299620667,3.0,2712.9,2712.3,0.882]
[1730299621996,3.0,2712.9,2712.4,0.8978]
[1730299622584,6.6861,2712.9,2712.5,0.458463]
[1730299622791,3.0,2712.9,2712.4,0.8978]
[1730299625096,3.0,2712.9,2711.5,0.3789]
[1730299625097,3.0,2712.4,2711.6,0.9259]
[1730299625305,3.68747,2711.9,2711.6,0.9259]
[1730299625709,0.9139,2712.2,2711.6,0.9259]
[1730299625710,3.68732,2712.0,2711.6,0.9259]
[1730299625868,3.0,2712.1,2711.6,0.9259]
[1730299626170,3.0,2712.1,2711.7,0.44195275]
[1730299626378,3.68745,2711.9,2711.6,0.9259]
[1730299626958,3.68758,2711.8,2711.6,0.9259]
[1730299627159,3.68745,2711.9,2711.6,0.9259]
[1730299627366,3.68741,2712.0,2710.9,3.6887]
[1730299627367,7.37462,2712.0,2711.1,0.9226]
[1730299627565,3.9029,2712.1,2711.1,0.9226]
[1730299627566,3.9029,2712.1,2711.1,1.36422275]
[1730299627888,3.0,2711.9,2711.3,0.9226]
[1730299628063,3.0,2712.1,2711.6,0.9079]
[1730299628272,6.68721,2712.1,2711.7,0.44015275]
[1730299629158,3.0,2712.2,2711.7,0.44015275]
[1730299629359,3.68752,2711.9,2711.7,0.44015275]
[1730299629563,3.68731,2712.0,2711.6,0.9079]
[1730299629784,3.68745,2711.9,2711.6,0.9079]
[1730299629985,3.68733,2712.0,2711.6,0.9079]
[1730299631481,3.68715,2712.2,2711.6,0.9079]
[1730299631701,3.0,2712.3,2711.8,0.9017]
[1730299632056,3.68616,2712.9,2711.8,0.9017]
[1730299632057,7.37268,2712.8,2712.0,0.9017]
[1730299632263,3.68632,2712.8,2712.1,0.9017]
[1730299632447,3.68609,2712.9,2712.3,0.8791]
[1730299633363,4.5182,2713.0,2712.3,0.8791]
[1730299633546,3.68643,2712.7,2712.3,0.8791]
[1730299633719,3.68671,2712.5,2712.3,0.8791]
[1730299633921,3.68697,2712.3,2711.8,0.8888]
[1730299634126,3.0,2712.3,2711.8,0.8888]
[1730299634366,3.68737,2712.0,2711.4,0.8888]
[1730299634520,3.0,2712.3,2711.5,0.07375362]
[1730299634726,6.68698,2712.3,2711.7,0.8888]
[1730299635665,10.374,2712.3,2711.7,0.8888]
[1730299635881,6.68698,2712.3,2711.7,0.8888]
[1730299636041,3.68712,2712.2,2711.7,0.8888]
[1730299636236,3.68712,2712.2,2711.7,1.346479]
[1730299636437,3.68725,2712.1,2711.7,1.346479]
[1730299636651,6.68698,2712.3,2711.7,0.8888]
[1730299636857,3.9066,2712.5,2711.7,0.8888]
[1730299637055,3.68704,2712.2,2711.7,0.8888]
[1730299637251,3.0,2712.3,2711.7,0.8888]
[1730299637481,6.68692,2712.3,2711.8,0.80702575]
[1730299637666,3.0,2712.3,2711.8,0.80702575]
[1730299637867,3.0,2712.5,2711.8,0.80702575]
[1730299638050,3.68678,2712.4,2711.7,4.57651]
[1730299638255,3.0,2712.3,2711.7,4.57651]
[1730299638449,3.0,2712.4,2711.7,3.68765]
[1730299638650,3.0,2712.4,2711.9,0.8596]
[1730299639952,6.68678,2712.4,2711.9,0.8596]
[1730299641089,3.68695,2712.3,2711.9,0.8596]
[1730299641995,6.68678,2712.4,2711.9,0.8596]
[1730299642395,10.37367,2712.4,2711.9,0.8596]
[1730299642560,3.68701,2712.3,2711.9,0.8596]
[1730299642969,6.68678,2712.4,2711.9,0.8596]
[1730299643593,3.0,2712.5,2711.9,0.8596]
[1730299643798,8.54649057,2712.7,2711.9,0.8596]
[1730299643799,3.0,2712.3,2711.9,0.8596]
[1730299643999,3.0,2712.3,2711.9,1.41358905]
[1730299644311,6.68691,2712.3,2711.9,1.41358905]
[1730299644534,3.68725,2712.1,2711.9,1.41358905]
[1730299644681,3.8825,2712.2,2711.5,0.8399]
[1730299645004,3.8825,2712.2,2711.3,0.8399]
[1730299645005,3.68774,2711.7,2711.3,0.8399]
[1730299645215,3.68755,2711.9,2711.3,0.8399]
[1730299645369,6.68765,2711.8,2711.4,0.45282]
[1730299645708,3.0,2711.8,2711.4,0.45282]
[1730299646076,3.68745,2711.9,2711.4,0.45282]
[1730299646077,3.68747,2711.9,2711.4,0.45282]
[1730299646414,3.0,2711.8,2711.4,0.45282]
[1730299646622,3.0,2711.8,2711.5,0.47863475]
[1730299646784,6.68765,2711.8,2711.5,0.47863475]
[1730299647184,3.0,2712.1,2711.6,0.8382]
[1730299647380,3.0,2712.1,2711.6,8.01961752]
[1730299647594,3.0,2712.1,2711.7,0.84982523]
[1730299647925,6.68728,2712.1,2711.7,0.84982523]
[1730299648085,3.68772,2711.7,2711.4,1.1528509]
[1730299648422,3.68799,2711.5,2711.4,0.8781]
[1730299648571,3.68799,2711.5,2711.1,0.27479273]
[1730299648572,3.68799,2711.5,2711.2,0.8781]
[1730299648772,3.68799,2711.5,2711.2,1.34275203]
[1730299648973,3.0,2711.7,2711.2,1.34275203]
[1730299649184,6.68773,2711.7,2711.2,1.34275203]
[1730299650012,3.68791,2711.6,2711.2,1.34275203]
[1730299650211,6.68773,2711.7,2711.2,0.8781]
[1730299651011,3.0,2711.7,2711.2,0.8781]
[1730299651383,3.68787,2711.6,2711.2,0.8781]
[1730299651814,6.68773,2711.7,2711.2,0.8781]
[1730299651994,3.68773,2711.7,2711.2,0.8781]
[1730299653176,3.6876,2711.8,2711.3,0.8714]
[1730299653403,0.8904,2711.7,2711.2,0.37623208]
[1730299653609,0.8904,2711.7,2711.0,4.63984839]
[1730299653610,0.8904,2711.7,2711.0,0.8714]
[1730299653773,3.68758,2711.8,2711.2,0.8714]
[1730299654119,3.68793,2711.6,2711.2,0.8714]
[1730299654470,3.68793,2711.6,2711.2,1.33478341]
[1730299654670,3.68773,2711.7,2711.2,1.33478341]
[1730299655304,3.68774,2711.7,2711.2,1.33478341]
[1730299655814,3.68788,2711.6,2711.2,1.33478341]
[1730299657209,3.68808,2711.5,2711.2,1.33478341]
[1730299657418,3.68808,2711.5,2711.2,0.8714]
[1730299657782,3.68782,2711.7,2711.2,0.8714]
[1730299658597,3.68781,2711.7,2711.2,0.8714]
[1730299658813,3.68795,2711.6,2711.2,0.8714]
[1730299658981,3.68785,2711.6,2711.2,0.8714]
[1730299659380,3.68811,2711.5,2711.2,0.8714]
[1730299659589,3.68813,2711.4,2711.2,0.8714]
[1730299659790,3.688,2711.5,2711.2,0.8714]
[1730299659993,3.68782,2711.7,2711.2,0.8714]
[1730299660318,3.8904,2712.0,2711.2,0.8714]
[1730299660498,3.68781,2711.7,2711.3,0.455984]
[1730299660889,6.68759,2711.8,2711.3,0.455984]
[1730299661092,3.68772,2711.7,2711.2,4.55979]
[1730299661389,3.68772,2711.7,2711.2,0.8714]
[1730299661604,3.68772,2711.7,2711.3,0.455992]
[1730299661804,3.0,2711.8,2711.3,3.68821]
[1730299662418,0.06389394,2712.2,2712.1,0.8563]
[1730299662580,7.62009057,2712.7,2712.1,0.8563]
[1730299662784,11.30651057,2712.7,2712.1,0.8563]
[1730299663508,7.62009057,2712.7,2712.1,4.61713584]
[1730299663718,7.62009057,2712.7,2712.2,0.46171358]
[1730299663888,3.0,2712.7,2712.2,0.46171358]
[1730299664081,3.98,2713.0,2712.3,0.96493584]
[1730299664285,0.3,2712.5,2712.2,0.46171358]
[1730299667132,0.3,2712.5,2712.3,0.50430036]
[1730299667301,0.3,2712.5,2712.3,4.19114036]
[1730299667504,0.3,2712.5,2712.1,0.8942]
[1730299668387,3.68692,2712.3,2711.7,7.18126752]
[1730299668584,1.1717,2712.5,2711.8,4.5817]
[1730299668885,3.68684,2712.4,2711.9,0.80753275]
[1730299669099,3.68716,2712.2,2711.8,0.8942]
[1730299669299,3.68732,2712.0,2711.8,0.8942]
[1730299669505,3.68724,2712.1,2711.8,0.8942]
[1730299670345,3.68724,2712.1,2711.6,0.8942]
[1730299670499,3.68724,2712.1,2711.6,1.70177375]
[1730299671123,7.37403,2712.3,2711.6,5.38962375]
[1730299671442,3.68725,2712.1,2711.6,0.8942]
[1730299671810,3.68741,2712.0,2711.6,0.8942]
[1730299672940,3.68718,2712.1,2711.6,0.8942]
[1730299673103,3.68738,2712.0,2711.6,0.8942]
[1730299673512,7.37513,2711.9,2711.4,4.37322752]
[1730299673718,3.68756,2711.9,2711.4,8.06132752]
[1730299673919,3.68756,2711.9,2711.4,9.23629127]
[1730299674371,3.68753,2711.9,2711.4,5.54819127]
[1730299674529,4.60482,2712.0,2711.4,9.23630127]
[1730299674851,3.68732,2712.0,2711.4,12.92435127]
[1730299675054,3.0,2712.1,2711.5,1.36619081]
[1730299675263,3.0,2712.1,2711.6,4.51752]
[1730299675415,3.0,2712.1,2711.6,0.8298]
[1730299675623,3.0,2712.3,2711.6,0.8298]
[1730299675819,6.6869,2712.3,2711.6,1.90593528]
[1730299676217,6.6869,2712.3,2711.7,3.49362752]
[1730299676762,6.6869,2712.3,2711.8,0.8298]
[1730299677336,10.37393,2712.3,2711.8,0.8298]
[1730299677538,3.68726,2712.1,2711.8,0.8298]
[1730299677947,3.68726,2712.1,2711.5,0.8298]
[1730299678263,3.68778,2711.7,2711.2,0.8298]
[1730299678444,3.68778,2711.7,2711.2,1.10508607]
[1730299678648,0.8509,2711.8,2711.2,0.8298]
[1730299678851,3.68782,2711.7,2711.2,0.8298]
[1730299679157,3.68789,2711.6,2711.2,0.8298]
[1730299679546,3.68782,2711.7,2711.2,0.8298]
[1730299679547,7.37567,2711.7,2711.2,0.8298]
[1730299679732,7.37567,2711.7,2711.2,1.10508607]
[1730299679933,7.37567,2711.7,2711.2,0.8298]
[1730299680132,3.68782,2711.7,2711.2,0.8298]
[1730299680355,3.6878,2711.7,2711.2,1.10508607]
[1730299680633,3.68792,2711.6,2711.2,0.8298]
[1730299680831,3.688,2711.5,2711.2,0.8298]
[1730299681125,0.8509,2711.8,2710.9,0.94926936]
[1730299681346,3.68792,2711.6,2710.9,5.18883802]
[1730299681660,3.68768,2711.8,2711.2,0.8755]
[1730299681858,3.68768,2711.8,2711.3,0.43691275]
[1730299682202,3.9157,2712.0,2711.3,0.43691275]
[1730299682203,3.68792,2711.6,2711.3,0.43691275]
[1730299682339,3.9157,2712.0,2711.0,1.12104008]
[1730299682340,3.68758,2711.8,2711.0,1.12104008]
[1730299682522,3.68772,2711.7,2711.0,1.30726676]
[1730299682865,3.6882,2711.4,2711.0,0.8458]
[1730299683033,3.68801,2711.5,2711.0,0.8458]
[1730299683238,3.68785,2711.6,2711.0,1.68353787]
[1730299683823,6.68772,2711.7,2711.0,5.44595248]
[1730299684062,6.68772,2711.7,2711.0,5.37218787]
[1730299684455,6.68772,2711.7,2711.0,1.68353787]
[1730299684456,3.68802,2711.5,2711.0,1.68353787]
[1730299684925,3.68794,2711.6,2711.0,1.68353787]
[1730299685132,3.68794,2711.6,2711.1,0.19586652]
[1730299685455,3.0,2711.7,2711.1,3.68949404]
[1730299685784,0.90492393,2712.2,2711.5,3.68799]
[1730299686061,0.3,2712.5,2711.9,0.8282]
[1730299686266,3.98672,2712.5,2711.9,1.68414075]
[1730299686472,3.68687,2712.4,2711.9,1.68414075]
[1730299686628,3.98672,2712.5,2711.9,1.68414075]
[1730299686971,3.68677,2712.4,2711.9,1.68414075]
[1730299687177,3.68706,2712.2,2711.9,1.68414075]
[1730299687335,3.68729,2712.1,2711.9,0.8282]
[1730299687529,7.37456,2712.1,2711.5,0.8307]
[1730299687762,3.68712,2712.2,2711.6,0.0737555]
[1730299687966,3.68724,2712.1,2711.5,0.8307]
[1730299688182,3.6869,2712.3,2711.6,0.87499341]
[1730299688329,3.68688,2712.4,2711.7,0.9133]
[1730299688849,3.68691,2712.3,2711.7,0.9133]
[1730299689059,3.6872,2712.1,2711.8,0.54022838]
[1730299689232,3.6872,2712.1,2711.7,0.9133]
[1730299689578,3.68724,2712.1,2711.7,0.9133]
[1730299689780,3.68706,2712.2,2711.7,0.9133]
[1730299690135,3.6872,2712.1,2711.7,0.9133]
[1730299690334,3.68743,2712.0,2711.7,0.9133]
[1730299690640,7.37507,2711.9,2711.2,5.06639]
[1730299690833,3.68765,2711.8,2711.3,0.27529622]
[1730299691225,3.68729,2712.1,2711.5,0.9136]
[1730299691843,3.68743,2712.0,2711.5,0.9136]
[1730299692894,3.68745,2711.9,2711.5,0.9136]
[1730299693409,3.68737,2712.0,2711.5,1.72313975]
[1730299693705,3.68746,2711.9,2711.5,1.72313975]
[1730299694392,3.68726,2712.1,2711.5,1.72313975]
[1730299694591,3.68732,2712.0,2711.5,1.72313975]
[1730299694905,3.0,2712.1,2711.6,0.52167673]
[1730299695111,6.68719,2712.1,2711.6,0.52167673]
[1730299695281,3.68733,2712.0,2711.6,0.52167673]
[1730299696375,3.68733,2712.0,2711.5,0.9136]
[1730299696578,3.68765,2711.8,2711.5,0.9136]
[1730299696782,3.0,2712.2,2711.5,0.9136]
[1730299697105,3.68724,2712.1,2711.5,0.9136]
[1730299697309,7.37452,2712.1,2711.5,1.40130417]
[1730299697499,3.68747,2711.9,2711.5,1.40130417]
[1730299697675,7.37455,2712.1,2711.5,0.9136]
[1730299697870,6.68707,2712.2,2711.5,0.9136]
[1730299698079,3.68717,2712.1,2711.5,0.9136]
[1730299698309,3.68731,2712.0,2711.5,0.9136]
[1730299698472,3.68717,2712.1,2711.5,1.4013061]
[1730299698676,3.68747,2711.9,2711.5,0.9136]
[1730299699217,3.68733,2712.0,2711.5,0.9136]
[1730299699400,3.68728,2712.1,2711.5,0.9136]
[1730299699605,3.0,2712.2,2711.6,0.92665037]
[1730299699606,3.68717,2712.2,2711.6,0.92665037]
[1730299699823,3.68711,2712.2,2711.6,0.8529]
[1730299700028,3.68723,2712.1,2711.6,0.8529]
[1730299700201,3.68723,2712.1,2711.7,0.454082]
[1730299700403,3.68711,2712.2,2711.7,0.454082]
[1730299700699,3.68686,2712.4,2711.8,0.8713]
[1730299700915,3.6869,2712.3,2711.8,0.8713]
[1730299701310,3.68686,2712.4,2711.8,0.8713]
[1730299701511,7.37371,2712.4,2711.8,0.8713]
[1730299701722,3.68685,2712.4,2711.8,0.8713]
[1730299701939,3.68685,2712.4,2711.9,0.455894]
[1730299702139,3.68685,2712.4,2712.0,0.851]
[1730299702851,0.3,2712.5,2712.0,0.92474292]
[1730299703013,0.3,2712.5,2712.1,4.60045]
[1730299703212,0.3,2712.5,2712.2,3.68695]
[1730299703422,0.3,2712.5,2712.4,0.9133]
[1730299707120,0.3,2712.5,2712.1,1.13390758]
[1730299707121,3.98663,2712.5,2712.1,1.13390758]
[1730299707558,0.3,2712.5,2712.4,1.4081]
[1730299707764,0.3,2712.5,2712.4,6.0160974]
[1730299707961,0.3,2712.5,2712.4,1.7793274]
[1730299708190,0.3,2712.5,2712.4,0.8581]
[1730299708548,0.3,2712.5,2712.4,4.54487]
[1730299708748,0.3,2712.5,2712.4,5.16859271]
[1730299708986,3.68506,2713.7,2713.1,0.8503]
[1730299709188,3.68506,2713.7,2713.1,0.9240072]
[1730299709395,3.68521,2713.6,2713.1,0.8503]
[1730299709578,3.68539,2713.5,2713.1,0.8503]
[1730299709758,3.68517,2713.6,2713.1,0.8503]
[1730299710092,3.68549,2713.4,2713.1,0.8503]
[1730299710248,3.68496,2713.8,2713.1,0.8503]
[1730299710444,0.8623,2714.0,2713.1,0.8503]
[1730299710445,3.68501,2713.7,2713.1,0.8503]
[1730299710658,3.68474,2713.9,2713.2,3.68567]
[1730299710879,3.68466,2714.0,2713.4,0.8519]
[1730299711096,0.8571,2714.2,2713.4,0.8519]
[1730299711252,3.68482,2713.9,2713.4,0.8519]
[1730299711451,3.68494,2713.8,2713.4,0.8519]
[1730299711700,3.68482,2713.9,2713.4,0.8519]
[1730299711913,3.68503,2713.7,2713.4,0.8519]
[1730299712090,3.68527,2713.6,2713.4,0.8519]
[1730299712782,7.37012,2713.7,2713.4,0.8519]
[1730299712982,3.68503,2713.7,2713.4,0.8519]
[1730299713182,3.68515,2713.6,2713.4,0.8519]
[1730299714402,3.68515,2713.6,2713.0,0.8419]
[1730299714705,3.0,2714.3,2713.0,1.349704]
[1730299714706,3.68543,2713.4,2713.0,1.349704]
[1730299714910,3.49362752,2713.6,2712.4,3.68666]
[1730299715196,0.9157,2713.2,2712.5,0.8419]
[1730299715396,3.68638,2712.7,2712.5,0.8419]
[1730299715903,3.68635,2712.8,2712.5,0.8419]
[1730299716103,3.68639,2712.7,2712.5,0.8419]
[1730299716315,3.68635,2712.8,2712.5,0.8419]
[1730299716902,3.68643,2712.7,2712.5,0.8419]
[1730299718102,0.9157,2713.2,2712.5,0.8419]
[1730299718262,3.68602,2713.0,2712.5,0.8419]
[1730299718764,3.68602,2713.0,2712.6,0.452865]
[1730299719198,3.68609,2712.9,2712.6,0.452865]
[1730299719388,3.68609,2712.9,2712.5,0.8419]
[1730299719597,3.6863,2712.8,2712.5,0.8419]
[1730299720199,3.68661,2712.6,2712.1,0.8752]
[1730299720413,0.8504,2712.7,2712.1,0.8752]
[1730299720563,3.68714,2712.2,2711.8,0.9066]
[1730299720764,3.68712,2712.2,2711.8,0.9066]
[1730299721075,3.68683,2712.4,2711.8,0.9066]
[1730299721396,3.68686,2712.4,2711.8,0.9066]
[1730299721599,3.6869,2712.3,2711.8,0.9066]
[1730299721813,3.68686,2712.4,2711.8,0.9066]
[1730299721978,3.68655,2712.6,2711.9,0.83556635]
[1730299722337,3.68655,2712.6,2712.0,0.07373722]
[1730299722505,7.37313,2712.6,2712.0,0.07373722]
[1730299722657,7.37315,2712.6,2712.0,0.07373722]
[1730299722860,3.68665,2712.5,2712.0,0.07373722]
[1730299723462,0.8504,2712.7,2712.1,3.68717]
[1730299723778,3.49362752,2713.0,2712.2,4.65187724]
[1730299723779,6.68618,2712.9,2712.2,4.65187724]
[1730299723980,3.0,2712.9,2712.3,3.6869]
[1730299724159,3.68604,2713.0,2712.2,0.8912]